bitfinex/quotes_SOLUSD_20240829
["timestamp","ask_amount","ask_price","bid_price","bid_amount"]
[1724891371727,20.0,144.61,144.53,0.12549]
[1724891371929,20.0,144.61,144.53,1.50812274]
[1724891372434,6.9157,144.6,144.53,1.50812274]
[1724891373845,6.9157,144.6,144.53,0.12549]
[1724891374013,6.9157,144.6,144.53,13.0094698]
[1724891374217,6.9157,144.6,144.54,45.0]
[1724891375035,6.9163,144.59,144.54,45.0]
[1724891376415,6.9157,144.6,144.54,45.0]
[1724891376640,6.9162,144.59,144.54,45.0]
[1724891377423,6.9167,144.58,144.52,12.8839798]
[1724891378841,6.9167,144.58,144.53,45.0]
[1724891379846,50.1723798,144.61,144.51,0.12549]
[1724891380137,12.8839798,144.59,144.51,0.12549]
[1724891380330,20.0,144.58,144.51,45.12549]
[1724891381235,6.9176,144.56,144.51,45.12549]
[1724891381436,23.1928,144.56,144.51,45.12549]
[1724891386822,23.1928,144.56,144.51,45.0]
[1724891391442,16.2752,144.56,144.48,7.23936247]
[1724891391643,6.9186,144.54,144.48,7.23936247]
[1724891391842,6.9186,144.54,144.47,12.8839798]
[1724891392840,6.9186,144.54,144.48,45.12549]
[1724891398256,6.9181,144.55,144.49,12.8839798]
[1724891398443,6.9181,144.55,144.5,45.0]
[1724891400428,16.2752,144.56,144.46,7.24045901]
[1724891400634,6.9191,144.53,144.46,7.24045901]
[1724891400834,6.9188,144.54,144.47,12.8839798]
[1724891401040,6.918,144.55,144.46,7.24047555]
[1724891401235,6.918,144.55,144.5,12.8839798]
[1724891401450,6.918,144.55,144.51,1.38381904]
[1724891402043,6.918,144.55,144.5,12.8839798]
[1724891402044,16.2752,144.56,144.52,1.38381893]
[1724891402457,16.2752,144.56,144.52,14.26779873]
[1724891402760,16.2752,144.56,144.51,45.0]
[1724891404036,16.2752,144.56,144.51,46.3834538]
[1724891404355,16.2752,144.56,144.52,14.26733787]
[1724891404571,15.8439,144.6,144.54,12.8839798]
[1724891404741,6.9161,144.59,144.54,12.8839798]
[1724891406045,22.7597,144.6,144.55,1.38344598]
[1724891406246,22.7597,144.6,144.55,45.0]
[1724891407259,6.9162,144.59,144.55,45.0]
[1724891407451,6.9162,144.59,144.52,13.0094698]
[1724891407652,6.9162,144.59,144.53,45.0]
[1724891407856,12.8839798,144.59,144.49,12.8839798]
[1724891408058,6.9178,144.56,144.49,12.8839798]
[1724891409043,29.2127,144.55,144.46,7.24047555]
[1724891409350,29.2127,144.55,144.48,12.8839798]
[1724891409539,29.2127,144.55,144.49,45.12549]
[1724891409734,29.2127,144.55,144.5,1.10705278]
[1724891409940,22.2946,144.55,144.5,13.99103258]
[1724891410156,15.9699,144.55,144.51,45.12549]
[1724891410345,15.9699,144.55,144.52,1.38364508]
[1724891410544,15.9699,144.55,144.51,45.12549]
[1724891410762,15.9699,144.55,144.5,12.8839798]
[1724891410959,22.8879,144.55,144.48,12.8839798]
[1724891411167,22.8879,144.55,144.49,45.12549]
[1724891411369,22.8879,144.55,144.43,88.59952564]
[1724891411370,6.9185,144.54,144.45,2.96986977]
[1724891411665,6.9185,144.54,144.43,75.83866602]
[1724891411666,6.919,144.53,144.46,20.12445535]
[1724891411967,13.0578,144.53,144.46,20.12445535]
[1724891412145,6.9198,144.52,144.46,20.12445535]
[1724891412347,6.9198,144.52,144.44,12.8839798]
[1724891413464,6.9198,144.52,144.46,12.8839798]
[1724891413849,6.1388,144.53,144.47,45.0]
[1724891414173,6.9195,144.52,144.47,45.0]
[1724891414350,6.9195,144.52,144.48,1.38407481]
[1724891414857,6.9195,144.52,144.47,45.0]
[1724891416552,6.92,144.51,144.47,45.0]
[1724891416749,6.92,144.51,144.45,0.12549]
[1724891416965,6.92,144.51,144.45,45.12549]
[1724891417268,6.9195,144.52,144.45,45.12549]
[1724891417972,6.92,144.51,144.45,0.12549]
[1724891419446,6.9195,144.52,144.45,0.12549]
[1724891419950,6.9195,144.52,144.46,12.8839798]
[1724891422455,13.0578,144.53,144.48,12.8839798]
[1724891422768,13.0578,144.53,144.46,12.8839798]
[1724891422959,13.0578,144.53,144.47,45.12549]
[1724891423964,13.0578,144.53,144.47,0.12549]
[1724891424356,6.9195,144.52,144.46,45.0]
[1724891426278,19.0227798,144.53,144.45,0.12549]
[1724891426454,16.4749,144.52,144.45,45.0]
[1724891426776,6.9212,144.49,144.44,7.23567942]
[1724891427071,6.9212,144.49,144.41,12.8839798]
[1724891427880,6.9212,144.49,144.42,0.12549]
[1724891428057,6.9212,144.49,144.42,45.25098]
[1724891428253,6.922,144.47,144.4,20.11958031]
[1724891428467,6.9223,144.46,144.4,20.11958031]
[1724891428985,22.3093,144.48,144.4,7.23560051]
[1724891428986,12.8839798,144.47,144.4,7.23560051]
[1724891429277,12.8839798,144.47,144.37,12.8839798]
[1724891429571,12.8839798,144.47,144.37,20.12124888]
[1724891430264,12.8839798,144.45,144.37,7.23726908]
[1724891430467,12.8839798,144.45,144.32,7.77794674]
[1724891430468,15.0488,144.4,144.32,1.20554674]
[1724891430677,15.0488,144.4,144.33,12.8839798]
[1724891430972,15.0488,144.4,144.33,20.12304387]
[1724891431166,15.0488,144.4,144.33,7.23906407]
[1724891431366,28.5219,144.4,144.33,20.12304387]
[1724891431876,6.9257,144.39,144.33,7.23906407]
[1724891432854,6.9263,144.38,144.33,7.23906407]
[1724891433054,6.9263,144.38,144.3,12.8839798]
[1724891433300,6.9263,144.38,144.3,20.1156817]
[1724891433955,6.9257,144.39,144.32,12.8839798]
[1724891434158,21.5967,144.4,144.3,7.2317019]
[1724891434459,6.9272,144.36,144.31,12.8839798]
[1724891434768,6.9267,144.37,144.31,12.8839798]
[1724891434957,12.8839798,144.37,144.3,7.24110099]
[1724891435156,6.5948,144.34,144.2,50.0]
[1724891435378,6.93,144.3,144.28,7.23912264]
[1724891435676,19.8135798,144.31,144.22,12.8839798]
[1724891435885,22.9623,144.33,144.24,12.8839798]
[1724891436176,6.929,144.32,144.25,32.33093425]
[1724891436382,6.9296,144.31,144.22,7.24048069]
[1724891436579,6.9291,144.32,144.23,62.33093425]
[1724891436782,16.0334,144.33,144.25,32.33093425]
[1724891437107,32.33093425,144.37,144.31,32.33093425]
[1724891437108,15.4361,144.37,144.31,32.33093425]
[1724891437379,15.4361,144.37,144.28,32.33093425]
[1724891437578,15.4361,144.37,144.32,32.33093425]
[1724891437776,21.9335,144.41,144.33,46.38308429]
[1724891437978,21.9335,144.41,144.36,32.33093425]
[1724891437979,15.493,144.41,144.36,32.33093425]
[1724891438159,15.493,144.41,144.37,45.0]
[1724891438359,15.493,144.41,144.33,77.33093425]
[1724891438684,15.493,144.41,144.29,32.33093425]
[1724891438983,15.493,144.41,144.33,32.33093425]
[1724891439163,15.493,144.41,144.3,46.63651006]
[1724891439164,22.4178,144.41,144.35,32.33093425]
[1724891439483,22.4178,144.41,144.36,45.0]
[1724891439684,22.4178,144.41,144.34,45.25098]
[1724891439858,15.493,144.41,144.34,45.0]
[1724891440057,6.926,144.39,144.31,32.33093425]
[1724891440371,22.4181,144.41,144.33,32.33093425]
[1724891440559,22.4181,144.41,144.34,45.0]
[1724891440560,6.9252,144.4,144.34,45.0]
[1724891440761,6.9252,144.4,144.32,45.12549]
[1724891441572,6.9267,144.37,144.31,32.33093425]
[1724891441772,6.9267,144.37,144.29,32.33093425]
[1724891442986,6.5936,144.4,144.33,32.33093425]
[1724891443187,6.5936,144.4,144.34,0.49924812]
[1724891443363,6.5936,144.4,144.34,0.62473812]
[1724891443565,6.5936,144.4,144.35,32.33093425]
[1724891443872,6.5936,144.4,144.36,0.37370633]
[1724891444184,6.9259,144.39,144.36,45.0]
[1724891444380,13.5188,144.4,144.34,0.12549]
[1724891444578,6.5936,144.4,144.34,45.12549]
[1724891444785,6.5936,144.4,144.35,0.64544249]
[1724891444986,6.5936,144.4,144.35,1.38519271]
[1724891445166,6.5936,144.4,144.36,1.38509675]
[1724891445485,6.5936,144.4,144.34,45.12549]
[1724891447178,6.5936,144.4,144.34,45.0]
[1724891448189,13.519,144.4,144.34,45.0]
[1724891448764,6.9257,144.39,144.34,45.0]
[1724891448962,6.9262,144.38,144.31,32.33093425]
[1724891449168,6.5936,144.4,144.32,1.38552207]
[1724891449367,6.5936,144.4,144.33,1.38532494]
[1724891449580,6.5936,144.4,144.33,32.33093425]
[1724891449581,13.5192,144.4,144.33,32.33093425]
[1724891449794,6.9258,144.39,144.33,32.33093425]
[1724891450084,6.9268,144.37,144.29,32.33093425]
[1724891450276,6.9264,144.38,144.3,1.38563383]
[1724891450700,6.9267,144.37,144.29,32.33093425]
[1724891450873,15.9623,144.36,144.28,32.33093425]
[1724891451267,22.8895,144.36,144.28,32.33093425]
[1724891451989,13.3122,144.35,144.28,32.33093425]
[1724891452394,6.3844,144.35,144.28,32.33093425]
[1724891453603,13.312,144.35,144.28,32.33093425]
[1724891453886,6.3844,144.35,144.29,0.12549]
[1724891454273,6.3844,144.35,144.29,45.12549]
[1724891454691,13.3121,144.35,144.29,45.0]
[1724891455770,6.3844,144.35,144.3,1.04956824]
[1724891455984,6.3844,144.35,144.29,45.0]
[1724891456793,13.3121,144.35,144.29,45.0]
[1724891457483,13.3121,144.35,144.29,45.43614186]
[1724891457673,13.3121,144.35,144.3,0.45180319]
[1724891457873,13.3121,144.35,144.29,45.0]
[1724891458188,6.3844,144.35,144.29,45.0]
[1724891458375,13.312,144.35,144.29,45.0]
[1724891458582,13.312,144.35,144.3,1.38577663]
[1724891458776,6.3844,144.35,144.3,1.38577663]
[1724891458985,15.9623,144.36,144.3,1.38577663]
[1724891458986,15.9623,144.36,144.32,32.33093425]
[1724891459197,15.9623,144.36,144.33,46.51086923]
[1724891459618,15.9623,144.36,144.33,45.0]
[1724891461885,15.9623,144.36,144.28,7.23766411]
[1724891462196,22.8894,144.36,144.29,45.12549]
[1724891462506,22.8894,144.36,144.3,32.33093425]
[1724891462685,22.8894,144.36,144.31,45.0]
[1724891463998,22.8894,144.36,144.31,46.3856803]
[1724891464700,22.8894,144.36,144.31,45.0]
[1724891465479,6.9284,144.34,144.28,7.23766411]
[1724891465684,6.9286,144.33,144.25,32.33093425]
[1724891465897,6.9286,144.33,144.25,39.56893645]
[1724891466601,6.9286,144.33,144.26,1.36787798]
[1724891466799,6.9286,144.33,144.27,1.36778316]
[1724891467304,6.9283,144.34,144.27,1.36778316]
[1724891467493,6.1057,144.35,144.28,0.25098]
[1724891467799,13.0335,144.35,144.29,32.33093425]
[1724891467986,6.1057,144.35,144.3,46.38572897]
[1724891468394,13.0333,144.35,144.3,46.38572897]
[1724891468587,13.0333,144.35,144.3,45.0]
[1724891469306,13.0333,144.35,144.25,7.2380022]
[1724891469307,6.9287,144.33,144.25,39.56893645]
[1724891469480,6.9287,144.33,144.26,30.0]
[1724891470098,6.9287,144.33,144.25,39.56893645]
[1724891470678,6.929,144.32,144.26,45.0]
[1724891470882,6.1057,144.35,144.27,33.84060247]
[1724891471103,13.0333,144.35,144.28,45.0]
[1724891471308,13.0333,144.35,144.29,0.12549]
[1724891471495,6.9282,144.34,144.28,45.0]
[1724891472299,6.1057,144.35,144.28,45.0]
[1724891472300,6.929,144.32,144.28,45.0]
[1724891472494,6.1057,144.35,144.25,7.2380022]
[1724891472700,16.2981,144.34,144.26,45.12549]
[1724891472906,6.9286,144.33,144.26,45.12549]
[1724891475499,6.9291,144.32,144.26,45.12549]
[1724891476393,6.9286,144.33,144.26,45.12549]
[1724891478107,6.9291,144.32,144.26,45.12549]
[1724891478290,6.9291,144.32,144.26,45.0]
[1724891478489,6.9296,144.31,144.26,45.0]
[1724891478690,6.9296,144.31,144.25,7.2380022]
[1724891478907,6.9296,144.31,144.22,32.33093425]
[1724891479107,38.43663425,144.35,144.22,32.33093425]
[1724891479108,28.9899,144.3,144.23,9.89699454]
[1724891479409,28.9899,144.3,144.23,9.89714537]
[1724891480611,28.9899,144.3,144.24,45.0]
[1724891480910,6.9305,144.29,144.23,7.23907821]
[1724891481094,6.9305,144.29,144.23,9.89725124]
[1724891481491,22.0599,144.3,144.23,7.23907821]
[1724891481492,6.9313,144.28,144.23,7.23907821]
[1724891481714,15.9222,144.26,144.19,5.63841673]
[1724891482016,15.9222,144.26,144.18,2.65880124]
[1724891482329,6.4365,144.25,144.18,32.65880124]
[1724891482485,6.9339,144.22,144.18,30.0]
[1724891482689,6.9339,144.22,144.14,32.33093425]
[1724891482885,6.9334,144.23,144.15,9.8797041]
[1724891483115,6.4365,144.25,144.19,32.33093425]
[1724891483304,6.4365,144.25,144.15,14.73910233]
[1724891483305,6.4365,144.25,144.21,32.33093425]
[1724891483491,15.9222,144.26,144.21,32.33093425]
[1724891484127,15.9222,144.26,144.22,45.0]
[1724891484287,15.9222,144.26,144.23,32.45642425]
[1724891484614,15.9222,144.26,144.24,45.0]
[1724891485211,22.8546,144.26,144.18,32.33093425]
[1724891485712,22.8546,144.26,144.17,4.85782429]
[1724891485713,6.3421,144.24,144.17,4.85782429]
[1724891485934,6.9337,144.23,144.16,4.85782429]
[1724891486229,15.1566,144.22,144.15,7.23659193]
[1724891488822,15.1566,144.22,144.16,45.12549]
[1724891490430,22.0904,144.22,144.15,7.23659193]
[1724891490732,22.0904,144.22,144.14,7.23890485]
[1724891491318,6.9344,144.21,144.14,7.23890485]
[1724891491820,6.9344,144.21,144.15,45.0]
[1724891492007,6.9344,144.21,144.14,7.23890485]
[1724891492206,15.1566,144.22,144.12,1.20808215]
[1724891492207,6.9349,144.2,144.12,3.86818151]
[1724891492431,6.9349,144.2,144.12,14.75198759]
[1724891492607,6.9349,144.2,144.12,14.75199509]
[1724891493326,6.9349,144.2,144.13,45.0]
[1724891494728,6.9349,144.2,144.12,7.23234974]
[1724891494909,6.9349,144.2,144.12,9.89243408]
[1724891495723,6.4631,144.19,144.12,9.89243408]
[1724891497020,6.4631,144.19,144.13,45.12549]
[1724891497240,15.1566,144.22,144.15,40.47764701]
[1724891497442,15.1566,144.22,144.16,45.0]
[1724891497734,15.1566,144.22,144.15,40.47764701]
[1724891498124,15.1566,144.22,144.14,0.12549]
[1724891498321,22.0905,144.22,144.14,40.60313701]
[1724891498626,22.0905,144.22,144.15,45.0]
[1724891499722,6.9344,144.21,144.13,0.12549]
[1724891500041,6.9344,144.21,144.13,45.0]
[1724891500244,15.1566,144.22,144.14,40.47764701]
[1724891500544,15.1566,144.22,144.16,40.47764701]
[1724891501117,15.1566,144.22,144.15,40.60313701]
[1724891501325,15.1566,144.22,144.16,45.0]
[1724891502537,15.1566,144.22,144.11,41.36844482]
[1724891502720,6.9349,144.2,144.12,2.66042093]
[1724891502924,15.1566,144.22,144.12,7.23810155]
[1724891502925,6.9343,144.21,144.12,7.23810155]
[1724891503127,6.9343,144.21,144.12,9.89843971]
[1724891503716,15.1566,144.22,144.12,7.23810155]
[1724891504018,21.8393,144.19,144.12,7.23810155]
[1724891504431,21.8393,144.19,144.13,40.47764701]
[1724891506126,21.8393,144.19,144.14,45.0]
[1724891506329,21.8393,144.19,144.12,7.36359155]
[1724891506560,21.8393,144.19,144.12,7.23810155]
[1724891507817,6.9358,144.18,144.12,7.23810155]
[1724891508015,21.8393,144.19,144.13,32.39782396]
[1724891508242,34.6416,144.34,144.17,32.39782396]
[1724891508243,16.6407,144.23,144.17,32.39782396]
[1724891508545,22.7847,144.27,144.22,32.39782396]
[1724891508723,22.7847,144.27,144.24,32.39782396]
[1724891509125,22.7847,144.27,144.22,32.39782396]
[1724891509332,22.7847,144.27,144.2,32.39782396]
[1724891509532,22.7847,144.27,144.21,45.0]
[1724891509730,15.4927,144.31,144.25,32.39782396]
[1724891509931,15.4927,144.31,144.27,32.39782396]
[1724891510234,15.4927,144.31,144.25,40.4102948]
[1724891510543,15.4927,144.31,144.23,40.4102948]
[1724891510846,22.4224,144.31,144.22,0.25098]
[1724891511143,22.4224,144.31,144.21,85.4102948]
[1724891511144,6.9302,144.3,144.21,85.4102948]
[1724891513343,15.3319,144.26,144.19,40.4102948]
[1724891513518,22.2639,144.26,144.17,40.4102948]
[1724891515659,22.2639,144.26,144.16,7.22507991]
[1724891515826,22.2639,144.26,144.17,40.4102948]
[1724891516343,16.0876,144.22,144.16,7.22507991]
[1724891516848,6.2189,144.21,144.14,2.66013388]
[1724891517340,6.2189,144.21,144.15,7.22741122]
[1724891517717,13.1534,144.21,144.14,2.66056674]
[1724891518045,6.2189,144.21,144.14,40.4102948]
[1724891518623,6.2189,144.21,144.16,40.4102948]
[1724891518946,6.2189,144.21,144.17,45.0]
[1724891520027,6.2189,144.21,144.18,41.79717835]
[1724891520349,6.9324,144.26,144.2,40.4102948]
[1724891520350,6.3909,144.25,144.2,40.4102948]
[1724891520532,6.3909,144.25,144.21,1.38654278]
[1724891520729,6.3909,144.25,144.17,45.0]
[1724891520944,13.3237,144.25,144.17,45.0]
[1724891521441,6.9329,144.24,144.17,45.0]
[1724891521843,6.3909,144.25,144.17,45.0]
[1724891522050,6.3909,144.25,144.18,40.6612748]
[1724891522256,6.3909,144.25,144.18,40.4102948]
[1724891522434,6.933,144.24,144.17,45.0]
[1724891524733,15.8787,144.22,144.14,40.4102948]
[1724891525030,22.8126,144.22,144.14,40.4102948]
[1724891525235,15.8787,144.18,144.12,7.22823853]
[1724891525628,15.8787,144.18,144.11,0.89079781]
[1724891525828,15.8787,144.18,144.11,8.11656546]
[1724891526344,6.3118,144.17,144.11,8.11656546]
[1724891526646,57.7442948,144.23,144.04,40.4102948]
[1724891526647,22.063,144.16,144.04,40.4102948]
[1724891527447,6.9379,144.14,144.05,1.38476406]
[1724891527829,6.9379,144.14,144.04,40.4102948]
[1724891528027,22.063,144.16,144.07,40.4102948]
[1724891528255,6.0313,144.2,144.13,40.4102948]
[1724891528446,6.0313,144.2,144.14,0.51764194]
[1724891528758,21.56,144.29,144.16,40.4102948]
[1724891528964,21.56,144.29,144.19,40.4102948]
[1724891529259,21.56,144.29,144.2,45.0]
[1724891529952,21.56,144.29,144.2,85.4102948]
[1724891531134,28.4907,144.29,144.2,85.4102948]
[1724891531333,28.4907,144.29,144.2,45.0]
[1724891531835,28.4907,144.29,144.19,45.12549]
[1724891532253,21.56,144.29,144.19,45.12549]
[1724891532455,21.56,144.29,144.19,40.4102948]
[1724891532935,29.8764,144.26,144.18,45.0]
[1724891533138,29.8764,144.26,144.17,45.0]
[1724891533139,22.9441,144.26,144.17,45.0]
[1724891533342,22.9441,144.26,144.13,40.4102948]
[1724891533653,22.9441,144.26,144.14,45.0]
[1724891533851,22.9441,144.26,144.15,40.4102948]
[1724891534152,22.9441,144.26,144.16,45.0]
[1724891534335,6.9328,144.25,144.16,45.0]
[1724891534956,6.9331,144.24,144.16,45.0]
[1724891535347,6.9331,144.24,144.17,0.66448989]
[1724891535859,6.9334,144.23,144.17,0.66448989]
[1724891537737,22.9441,144.26,144.18,41.07588926]
[1724891537956,22.9441,144.26,144.24,40.4102948]
[1724891538156,77.9329402,144.37,144.25,0.66527146]
[1724891538157,21.5946,144.35,144.25,0.66527146]
[1724891538361,6.9286,144.33,144.25,0.66527146]
[1724891538741,21.5946,144.35,144.26,40.5357848]
[1724891539047,21.5946,144.35,144.31,40.4102948]
[1724891539259,21.5946,144.35,144.32,0.66494877]
[1724891539566,21.5946,144.35,144.29,40.4102948]
[1724891539743,21.5946,144.35,144.3,45.0]
[1724891540247,28.5222,144.35,144.27,40.5357848]
[1724891540454,28.5222,144.35,144.27,40.4102948]
[1724891540455,21.5946,144.35,144.27,40.4102948]
[1724891540647,21.5946,144.35,144.28,45.25098]
[1724891540852,21.5946,144.35,144.29,40.4102948]
[1724891541065,28.5222,144.35,144.28,45.0]
[1724891541265,21.5946,144.35,144.29,0.12549]
[1724891541563,21.5946,144.35,144.28,45.0]
[1724891542357,28.5224,144.35,144.28,45.0]
[1724891542670,21.5946,144.35,144.28,45.0]
[1724891542977,21.5946,144.35,144.29,0.25098]
[1724891544252,21.5946,144.35,144.31,40.4102948]
[1724891545859,21.5946,144.35,144.29,40.6612748]
[1724891546061,21.5946,144.35,144.3,45.0]
[1724891548551,28.5222,144.35,144.3,45.0]
[1724891548783,6.9282,144.34,144.27,40.4102948]
[1724891549070,6.9286,144.33,144.27,40.4102948]
[1724891549273,6.9295,144.31,144.25,40.4102948]
[1724891549780,62.0048948,144.35,144.21,40.4102948]
[1724891549955,6.9306,144.29,144.21,40.4102948]
[1724891550280,6.9296,144.31,144.21,40.4102948]
[1724891550480,21.5946,144.35,144.24,40.4102948]
[1724891550678,21.5946,144.35,144.28,40.4102948]
[1724891551278,21.5946,144.35,144.29,45.25098]
[1724891551477,28.5222,144.35,144.29,45.25098]
[1724891551975,6.9282,144.34,144.29,45.12549]
[1724891552182,6.9287,144.33,144.26,40.4102948]
[1724891552387,6.9287,144.33,144.27,45.0]
[1724891552552,21.5946,144.35,144.27,45.0]
[1724891552873,6.9288,144.33,144.26,40.4102948]
[1724891553466,6.9291,144.32,144.26,40.4102948]
[1724891553874,6.9296,144.31,144.24,40.4102948]
[1724891554082,6.9296,144.31,144.25,45.0]
[1724891554261,6.9296,144.31,144.24,40.4102948]
[1724891554680,6.9291,144.32,144.24,40.4102948]
[1724891554878,6.9291,144.32,144.25,0.12549]
[1724891555189,6.9295,144.31,144.25,0.12549]
[1724891555553,6.9295,144.31,144.25,45.12549]
[1724891556862,21.5946,144.35,144.26,40.4102948]
[1724891557358,6.9291,144.32,144.26,40.4102948]
[1724891557578,21.5946,144.35,144.28,40.4102948]
[1724891557790,21.5946,144.35,144.29,45.0]
[1724891558088,28.5223,144.35,144.29,45.0]
[1724891558464,21.5946,144.35,144.29,45.0]
[1724891558863,21.5946,144.35,144.3,0.12549]
[1724891560191,28.5222,144.35,144.3,0.12549]
[1724891560490,28.5222,144.35,144.29,45.0]
[1724891560491,21.5946,144.35,144.29,45.0]
[1724891561073,6.9289,144.33,144.26,40.4102948]
[1724891561468,6.9281,144.34,144.26,40.4102948]
[1724891561993,21.5946,144.35,144.26,40.4102948]
[1724891562198,6.9295,144.31,144.24,40.4102948]
[1724891562490,6.929,144.32,144.24,40.4102948]
[1724891562696,6.929,144.32,144.25,45.25098]
[1724891564385,6.9296,144.31,144.25,45.25098]
[1724891564985,6.9296,144.31,144.25,45.12549]
[1724891565389,6.9296,144.31,144.22,40.4102948]
[1724891565568,6.9296,144.31,144.23,20.0]
[1724891566176,6.93,144.3,144.23,20.0]
[1724891566675,6.931,144.28,144.2,40.4102948]
[1724891566897,28.8568,144.29,144.2,40.4102948]
[1724891567069,21.9263,144.29,144.24,40.4102948]
[1724891567978,21.9263,144.29,144.25,45.25098]
[1724891569096,15.7941,144.32,144.25,45.25098]
[1724891569303,15.7941,144.32,144.26,40.4102948]
[1724891569595,15.7941,144.32,144.27,45.25098]
[1724891569795,15.7941,144.32,144.27,45.12549]
[1724891572082,22.7233,144.32,144.27,45.12549]
[1724891572285,6.9298,144.31,144.27,45.0]
[1724891572497,22.7232,144.32,144.27,45.0]
[1724891573303,15.7941,144.32,144.27,45.0]
[1724891573803,22.7231,144.32,144.27,45.0]
[1724891579102,15.7941,144.32,144.27,45.0]
[1724891579494,15.7941,144.32,144.28,1.22376721]
[1724891579688,22.7232,144.32,144.27,45.0]
[1724891582090,15.7941,144.32,144.27,45.0]
[1724891582292,15.7941,144.32,144.28,2.9084749]
[1724891582489,15.7941,144.32,144.28,0.25098]
[1724891582689,15.7941,144.32,144.29,2.65697262]
[1724891582900,15.7941,144.32,144.29,45.0]
[1724891583308,15.7941,144.32,144.3,2.65679119]
[1724891583606,15.7941,144.32,144.3,45.0]
[1724891583992,15.7941,144.32,144.29,45.0]
[1724891584197,15.7941,144.32,144.3,2.65685622]
[1724891584397,15.7941,144.32,144.29,45.0]
[1724891584707,15.7941,144.32,144.3,2.6568102]
[1724891584912,15.7941,144.32,144.29,45.0]
[1724891585214,15.7941,144.32,144.3,2.65683067]
[1724891585505,15.9482,144.35,144.29,45.0]
[1724891585712,15.9482,144.35,144.3,39.9692537]
[1724891585880,15.9482,144.35,144.31,47.65645854]
[1724891586085,15.9482,144.35,144.31,45.0]
[1724891586482,15.9482,144.35,144.32,2.65630592]
[1724891586700,15.9482,144.35,144.31,45.0]
[1724891586905,15.9482,144.35,144.32,2.78174326]
[1724891587121,15.9482,144.35,144.32,0.12549]
[1724891587910,15.9482,144.35,144.31,45.0]
[1724891588113,15.9482,144.35,144.32,2.65619957]
[1724891588283,15.9482,144.35,144.31,45.0]
[1724891588610,15.9482,144.35,144.32,2.65619957]
[1724891588789,15.9482,144.35,144.31,45.0]
[1724891588989,15.9482,144.35,144.32,2.65620593]
[1724891589215,15.9482,144.35,144.31,45.0]
[1724891589590,15.9482,144.35,144.32,2.65620586]
[1724891590406,15.9482,144.35,144.31,45.0]
[1724891591800,15.8093,144.4,144.34,32.33359753]
[1724891591997,15.8093,144.4,144.36,32.33359753]
[1724891592218,15.8093,144.44,144.38,32.33359753]
[1724891592389,15.8093,144.44,144.4,32.33359753]
[1724891592588,15.8093,144.44,144.41,45.12549]
[1724891593100,15.8093,144.44,144.38,32.33359753]
[1724891593303,15.8093,144.44,144.39,45.12549]
[1724891593923,15.8093,144.44,144.4,0.89130054]
[1724891595517,15.8093,144.44,144.4,32.33359753]
[1724891595815,15.8093,144.44,144.41,45.12549]
[1724891595999,15.8093,144.44,144.41,45.0]
[1724891596912,15.8093,144.44,144.42,0.12549]
[1724891597296,15.8093,144.44,144.41,45.0]
[1724891597692,15.8093,144.44,144.4,0.12549]
[1724891597917,15.8093,144.44,144.39,45.12549]
[1724891598607,15.8093,144.44,144.39,45.0]
[1724891598926,6.9242,144.43,144.34,32.33359753]
[1724891599814,6.9242,144.43,144.36,32.33359753]
[1724891600024,6.9242,144.43,144.35,40.3515335]
[1724891600196,15.8093,144.44,144.36,45.25098]
[1724891600401,15.8093,144.44,144.37,40.3515335]
[1724891600613,15.8093,144.44,144.39,40.3515335]
[1724891600815,15.8093,144.44,144.4,45.12549]
[1724891602016,6.9238,144.43,144.35,40.3515335]
[1724891602321,22.7326,144.44,144.35,40.3515335]
[1724891603219,6.9237,144.43,144.36,45.12549]
[1724891603434,6.9237,144.43,144.37,0.12549]
[1724891603737,6.9237,144.43,144.29,40.3515335]